[Event "Titled Tuesday Blitz January 03 Late 2023"]
[White "Aggelis, Nikolaos"]
[Black "Gomes, Luiz Alexandre de Souza"]
[WhiteFideId "4213220"]
[BlackFideId "2102790"]
[WhiteElo "2270"]
[BlackElo "2254"]
[Result "1-0"]
[Round "02"]
[TimeControl "180+2"]
[Date "2023.01.03"]
[WhiteClock "0:00:48"]
[BlackClock "0:00:23"]

1. e4 {[%clk 0:03:00]}  c5 {[%clk 0:02:59]} 2. Nf3 {[%clk 0:03:00]}  d6 {[%clk 0:02:59]} 3. d4 {[%clk 0:03:00]}  cxd4 {[%clk 0:03:00]} 4. Nxd4 {[%clk 0:03:01]}  Nf6 {[%clk 0:03:00]} 5. f3 {[%clk 0:03:00]}  a6 {[%clk 0:03:01]} 6. c4 {[%clk 0:03:00]}  e6 {[%clk 0:03:01]} 7. Nc3 {[%clk 0:03:00]}  Be7 {[%clk 0:02:58]} 8. Be3 {[%clk 0:03:00]}  Bd7 {[%clk 0:02:57]} 9. Be2 {[%clk 0:02:59]}  O-O {[%clk 0:02:56]} 10. O-O {[%clk 0:02:59]}  Nc6 {[%clk 0:02:56]} 11. Qd2 {[%clk 0:02:59]}  Rb8 {[%clk 0:02:56]} 12. Rfc1 {[%clk 0:02:58]}  Nxd4 {[%clk 0:02:55]} 13. Bxd4 {[%clk 0:02:58]}  b5 {[%clk 0:02:56]} 14. b3 {[%clk 0:02:48]}  Re8 {[%clk 0:02:50]} 15. Kh1 {[%clk 0:02:26]}  h6 {[%clk 0:02:49]} 16. Rd1 {[%clk 0:02:19]}  Qc7 {[%clk 0:02:42]} 17. Rac1 {[%clk 0:02:18]}  Red8 {[%clk 0:02:34]} 18. cxb5 {[%clk 0:02:16]}  axb5 {[%clk 0:02:25]} 19. Nd5 {[%clk 0:02:09]}  Nxd5 {[%clk 0:02:21]} 20. Rxc7 {[%clk 0:02:08]}  Nxc7 {[%clk 0:02:21]} 21. Qa5 {[%clk 0:02:03]}  Ne8 {[%clk 0:02:18]} 22. Rc1 {[%clk 0:01:54]}  Ra8 {[%clk 0:02:12]} 23. Qd2 {[%clk 0:01:53]}  Bg5 {[%clk 0:01:56]} 24. f4 {[%clk 0:01:51]}  Be7 {[%clk 0:01:52]} 25. Bf3 {[%clk 0:01:49]}  Rac8 {[%clk 0:01:45]} 26. Rxc8 {[%clk 0:01:46]}  Rxc8 {[%clk 0:01:45]} 27. h3 {[%clk 0:01:47]}  Bc6 {[%clk 0:01:38]} 28. Qa5 {[%clk 0:01:43]}  Bd8 {[%clk 0:01:20]} 29. Qa6 {[%clk 0:01:39]}  Bd7 {[%clk 0:01:07]} 30. Kh2 {[%clk 0:01:33]}  Kf8 {[%clk 0:00:48]} 31. a4 {[%clk 0:01:24]}  bxa4 {[%clk 0:00:47]} 32. bxa4 {[%clk 0:01:25]}  f6 {[%clk 0:00:48]} 33. a5 {[%clk 0:01:22]}  Ke7 {[%clk 0:00:48]} 34. Bb6 {[%clk 0:01:19]}  Nc7 {[%clk 0:00:41]} 35. Qb7 {[%clk 0:01:11]}  Na8 {[%clk 0:00:32]} 36. Bxd8+ {[%clk 0:01:08]}  Kxd8 {[%clk 0:00:33]} 37. e5 {[%clk 0:01:01]}  d5 {[%clk 0:00:32]} 38. exf6 {[%clk 0:00:59]}  gxf6 {[%clk 0:00:33]} 39. a6 {[%clk 0:00:56]}  Nc7 {[%clk 0:00:33]} 40. a7 {[%clk 0:00:54]}  Ra8 {[%clk 0:00:32]} 41. f5 {[%clk 0:00:49]}  exf5 {[%clk 0:00:23]} 42. Bxd5 {[%clk 0:00:49]}  Nxd5 {[%clk 0:00:23]} 43. Qxa8+ {[%clk 0:00:48]} 1-0


[Site "https://www.chess.com"]

[Event "Titled Tuesday Blitz January 03 Late 2023"]
[White "Kaganskiy, Gleb"]
[Black "Bilan, Danila"]
[WhiteFideId "4132025"]
[BlackFideId "24161918"]
[WhiteElo "2205"]
[BlackElo "2303"]
[Result "0-1"]
[Round "02"]
[TimeControl "180+2"]
[Date "2023.01.03"]
[WhiteClock "0:00:11"]
[BlackClock "0:00:08"]

1. e4 {[%clk 0:02:54]}  c6 {[%clk 0:03:00]} 2. d4 {[%clk 0:02:53]}  d5 {[%clk 0:03:01]} 3. exd5 {[%clk 0:02:54]}  cxd5 {[%clk 0:03:01]} 4. Bd3 {[%clk 0:02:54]}  Nc6 {[%clk 0:03:01]} 5. c3 {[%clk 0:02:55]}  Qc7 {[%clk 0:03:01]} 6. h3 {[%clk 0:02:41]}  g6 {[%clk 0:02:52]} 7. Nf3 {[%clk 0:02:40]}  Bf5 {[%clk 0:02:51]} 8. Be2 {[%clk 0:02:39]}  Nf6 {[%clk 0:02:50]} 9. O-O {[%clk 0:02:39]}  h5 {[%clk 0:02:47]} 10. Be3 {[%clk 0:02:34]}  e6 {[%clk 0:02:46]} 11. Qc1 {[%clk 0:02:30]}  Bd6 {[%clk 0:02:44]} 12. Na3 {[%clk 0:02:28]}  a6 {[%clk 0:02:44]} 13. Nc2 {[%clk 0:02:28]}  Ne4 {[%clk 0:02:35]} 14. Nce1 {[%clk 0:02:22]}  Rg8 {[%clk 0:02:14]} 15. Nd3 {[%clk 0:02:21]}  f6 {[%clk 0:02:04]} 16. c4 {[%clk 0:02:09]}  g5 {[%clk 0:01:55]} 17. cxd5 {[%clk 0:02:09]}  exd5 {[%clk 0:01:55]} 18. Nd2 {[%clk 0:01:52]}  g4 {[%clk 0:01:48]} 19. h4 {[%clk 0:01:42]}  O-O-O {[%clk 0:01:28]} 20. Nxe4 {[%clk 0:01:41]}  Bxe4 {[%clk 0:01:25]} 21. Nf4 {[%clk 0:01:35]}  Kb8 {[%clk 0:00:55]} 22. Ne6 {[%clk 0:01:32]}  Qe7 {[%clk 0:00:53]} 23. Nxd8 {[%clk 0:01:31]}  Rxd8 {[%clk 0:00:50]} 24. Bxa6 {[%clk 0:01:15]}  g3 {[%clk 0:00:34]} 25. f3 {[%clk 0:01:03]}  f5 {[%clk 0:00:21]} 26. Bg5 {[%clk 0:01:00]}  Qg7 {[%clk 0:00:21]} 27. fxe4 {[%clk 0:00:55]}  Qxd4+ {[%clk 0:00:20]} 28. Qe3 {[%clk 0:00:43]}  Qb4 {[%clk 0:00:18]} 29. a3 {[%clk 0:00:33]}  Qa5 {[%clk 0:00:16]} 30. b4 {[%clk 0:00:29]}  Qxa6 {[%clk 0:00:17]} 31. exd5 {[%clk 0:00:28]}  Bc7 {[%clk 0:00:14]} 32. b5 {[%clk 0:00:22]}  Qxb5 {[%clk 0:00:11]} 33. Rab1 {[%clk 0:00:22]}  Qxd5 {[%clk 0:00:10]} 34. Bf4 {[%clk 0:00:19]}  Ne5 {[%clk 0:00:07]} 35. Qxg3 {[%clk 0:00:12]}  Rd7 {[%clk 0:00:06]} 36. Rfd1 {[%clk 0:00:10]}  Qxd1+ {[%clk 0:00:07]} 37. Rxd1 {[%clk 0:00:10]}  Rxd1+ {[%clk 0:00:08]} 38. Kh2 {[%clk 0:00:11]}  Ng4+ {[%clk 0:00:08]} 0-1


[Site "https://www.chess.com"]

[Event "Titled Tuesday Blitz January 03 Late 2023"]
[White "Roman, Rodrigo"]
[Black "Ronka, Erik"]
[WhiteFideId "3701220"]
[BlackFideId "505080"]
[WhiteElo "2058"]
[BlackElo "2276"]
[Result "1-0"]
[Round "02"]
[TimeControl "180+2"]
[Date "2023.01.03"]
[WhiteClock "0:02:28"]
[BlackClock "0:01:22"]

1. e4 {[%clk 0:03:00]}  c5 {[%clk 0:02:57]} 2. Nf3 {[%clk 0:03:00]}  b6 {[%clk 0:02:58]} 3. d4 {[%clk 0:02:59]}  cxd4 {[%clk 0:02:59]} 4. Nxd4 {[%clk 0:02:59]}  Bb7 {[%clk 0:02:59]} 5. Nc3 {[%clk 0:03:00]}  a6 {[%clk 0:03:00]} 6. Be3 {[%clk 0:02:59]}  e6 {[%clk 0:03:00]} 7. Be2 {[%clk 0:02:59]}  Qc7 {[%clk 0:02:59]} 8. O-O {[%clk 0:02:59]}  Nf6 {[%clk 0:02:58]} 9. f3 {[%clk 0:02:57]}  Be7 {[%clk 0:02:39]} 10. Qd2 {[%clk 0:02:53]}  O-O {[%clk 0:02:36]} 11. Rfd1 {[%clk 0:02:52]}  b5 {[%clk 0:02:36]} 12. a3 {[%clk 0:02:51]}  d5 {[%clk 0:02:36]} 13. exd5 {[%clk 0:02:49]}  Nxd5 {[%clk 0:02:37]} 14. Nxd5 {[%clk 0:02:49]}  Bxd5 {[%clk 0:02:38]} 15. Nf5 {[%clk 0:02:47]}  Bc5 {[%clk 0:02:20]} 16. b4 {[%clk 0:02:46]}  Bxe3+ {[%clk 0:02:18]} 17. Nxe3 {[%clk 0:02:47]}  Bb7 {[%clk 0:02:16]} 18. c4 {[%clk 0:02:46]}  bxc4 {[%clk 0:02:05]} 19. Nxc4 {[%clk 0:02:46]}  Nc6 {[%clk 0:02:05]} 20. Qd6 {[%clk 0:02:45]}  Rac8 {[%clk 0:01:49]} 21. Rac1 {[%clk 0:02:42]}  h6 {[%clk 0:01:45]} 22. Qxc7 {[%clk 0:02:37]}  Rxc7 {[%clk 0:01:44]} 23. Nd6 {[%clk 0:02:38]}  Ba8 {[%clk 0:01:42]} 24. Bxa6 {[%clk 0:02:36]}  Ra7 {[%clk 0:01:38]} 25. b5 {[%clk 0:02:36]}  Nb8 {[%clk 0:01:38]} 26. Nc8 {[%clk 0:02:32]}  Rd7 {[%clk 0:01:21]} 27. Rxd7 {[%clk 0:02:30]}  Nxd7 {[%clk 0:01:22]} 28. b6 {[%clk 0:02:28]} 1-0


[Site "https://www.chess.com"]

[Event "Titled Tuesday Blitz January 03 Late 2023"]
[White "Weisz, Bryan"]
[Black "Taboas Rodriguez, Daniel"]
[WhiteFideId "30934133"]
[BlackFideId "2208466"]
[WhiteElo "1973"]
[BlackElo "2371"]
[Result "0-1"]
[Round "02"]
[TimeControl "180+2"]
[Date "2023.01.03"]
[WhiteClock "0:00:12"]
[BlackClock "0:01:31"]

1. Nf3 {[%clk 0:03:00]}  Nf6 {[%clk 0:02:59]} 2. g3 {[%clk 0:03:00]}  b6 {[%clk 0:02:59]} 3. Bg2 {[%clk 0:03:01]}  Bb7 {[%clk 0:03:00]} 4. O-O {[%clk 0:03:02]}  g6 {[%clk 0:02:59]} 5. c4 {[%clk 0:03:00]}  Bg7 {[%clk 0:02:59]} 6. Nc3 {[%clk 0:03:00]}  O-O {[%clk 0:02:59]} 7. d4 {[%clk 0:03:00]}  Ne4 {[%clk 0:02:59]} 8. Qc2 {[%clk 0:02:54]}  Nxc3 {[%clk 0:02:58]} 9. Qxc3 {[%clk 0:02:53]}  c5 {[%clk 0:02:58]} 10. e3 {[%clk 0:02:51]}  Nc6 {[%clk 0:02:58]} 11. Rd1 {[%clk 0:02:49]}  d5 {[%clk 0:02:57]} 12. cxd5 {[%clk 0:02:49]}  Qxd5 {[%clk 0:02:57]} 13. Ne5 {[%clk 0:02:44]}  Nxd4 {[%clk 0:02:58]} 14. Bxd5 {[%clk 0:02:38]}  Ne2+ {[%clk 0:02:57]} 15. Kf1 {[%clk 0:02:38]}  Nxc3 {[%clk 0:02:56]} 16. bxc3 {[%clk 0:02:10]}  Bxd5 {[%clk 0:02:54]} 17. Rxd5 {[%clk 0:02:10]}  e6 {[%clk 0:02:54]} 18. Rd7 {[%clk 0:01:36]}  Bxe5 {[%clk 0:02:43]} 19. Bb2 {[%clk 0:01:17]}  b5 {[%clk 0:02:15]} 20. Rb1 {[%clk 0:00:58]}  Rfd8 {[%clk 0:02:09]} 21. Rxd8+ {[%clk 0:00:56]}  Rxd8 {[%clk 0:02:09]} 22. Ke2 {[%clk 0:00:56]}  c4 {[%clk 0:01:57]} 23. f4 {[%clk 0:00:44]}  Bf6 {[%clk 0:01:55]} 24. e4 {[%clk 0:00:43]}  e5 {[%clk 0:01:53]} 25. Rf1 {[%clk 0:00:18]}  Rd3 {[%clk 0:01:48]} 26. Rc1 {[%clk 0:00:13]}  exf4 {[%clk 0:01:42]} 27. gxf4 {[%clk 0:00:13]}  Rh3 {[%clk 0:01:43]} 28. e5 {[%clk 0:00:14]}  Rxh2+ {[%clk 0:01:42]} 29. Ke3 {[%clk 0:00:15]}  Bxe5 {[%clk 0:01:39]} 30. fxe5 {[%clk 0:00:14]}  Rxb2 {[%clk 0:01:39]} 31. a4 {[%clk 0:00:13]}  bxa4 {[%clk 0:01:39]} 32. Ra1 {[%clk 0:00:13]}  Rb3 {[%clk 0:01:33]} 33. Rxa4 {[%clk 0:00:14]}  Rxc3+ {[%clk 0:01:33]} 34. Kd4 {[%clk 0:00:13]}  Rc1 {[%clk 0:01:31]} 35. Rxa7 {[%clk 0:00:13]}  c3 {[%clk 0:01:32]} 36. Ra8+ {[%clk 0:00:12]}  Kg7 {[%clk 0:01:31]} 37. Ra7 {[%clk 0:00:13]}  c2 {[%clk 0:01:31]} 38. e6 {[%clk 0:00:13]}  Rd1+ {[%clk 0:01:30]} 39. Ke3 {[%clk 0:00:12]}  c1=Q+ {[%clk 0:01:31]} 0-1


[Site "https://www.chess.com"]

[Event "Titled Tuesday Blitz January 03 Late 2023"]
[White "Fernandez, Maria Florencia"]
[Black "Girsh, Daniel"]
[WhiteFideId "116459"]
[BlackFideId "30949190"]
[WhiteElo "2129"]
[BlackElo "2123"]
[Result "1-0"]
[Round "02"]
[TimeControl "180+2"]
[Date "2023.01.03"]
[WhiteClock "0:00:21"]
[BlackClock "0:00:20"]

1. d4 {[%clk 0:03:00]}  Nf6 {[%clk 0:02:54]} 2. c4 {[%clk 0:03:00]}  e6 {[%clk 0:02:54]} 3. Nc3 {[%clk 0:03:00]}  Bb4 {[%clk 0:02:54]} 4. a3 {[%clk 0:03:00]}  Bxc3+ {[%clk 0:02:54]} 5. bxc3 {[%clk 0:03:01]}  Nc6 {[%clk 0:02:54]} 6. f3 {[%clk 0:03:00]}  d6 {[%clk 0:02:54]} 7. e4 {[%clk 0:03:00]}  e5 {[%clk 0:02:53]} 8. Bg5 {[%clk 0:02:58]}  h6 {[%clk 0:02:49]} 9. Bh4 {[%clk 0:02:58]}  g5 {[%clk 0:02:43]} 10. Bf2 {[%clk 0:02:57]}  b6 {[%clk 0:02:37]} 11. Bd3 {[%clk 0:02:51]}  Ba6 {[%clk 0:02:28]} 12. Qa4 {[%clk 0:02:43]}  Bb7 {[%clk 0:02:25]} 13. d5 {[%clk 0:02:40]}  b5 {[%clk 0:02:26]} 14. Qxb5 {[%clk 0:02:34]}  O-O {[%clk 0:02:21]} 15. dxc6 {[%clk 0:02:25]}  Bc8 {[%clk 0:02:20]} 16. Ne2 {[%clk 0:02:23]}  Be6 {[%clk 0:02:15]} 17. O-O {[%clk 0:02:21]}  Rb8 {[%clk 0:02:09]} 18. Qa4 {[%clk 0:02:20]}  g4 {[%clk 0:02:05]} 19. f4 {[%clk 0:02:16]}  Nh5 {[%clk 0:01:51]} 20. f5 {[%clk 0:02:05]}  Bc8 {[%clk 0:01:51]} 21. Rab1 {[%clk 0:01:58]}  Ra8 {[%clk 0:01:44]} 22. Bxa7 {[%clk 0:01:49]}  Kh7 {[%clk 0:01:33]} 23. Rb2 {[%clk 0:01:49]}  Qg5 {[%clk 0:01:27]} 24. Rfb1 {[%clk 0:01:44]}  Nf4 {[%clk 0:01:26]} 25. Nxf4 {[%clk 0:01:42]}  exf4 {[%clk 0:01:25]} 26. Rb8 {[%clk 0:01:32]}  Rxb8 {[%clk 0:01:24]} 27. Rxb8 {[%clk 0:01:32]}  g3 {[%clk 0:01:17]} 28. Qd1 {[%clk 0:01:19]}  gxh2+ {[%clk 0:01:12]} 29. Kh1 {[%clk 0:01:19]}  Rg8 {[%clk 0:01:10]} 30. Qf3 {[%clk 0:01:17]}  Qh4 {[%clk 0:01:09]} 31. Bf2 {[%clk 0:01:16]}  Qf6 {[%clk 0:01:04]} 32. Bd4 {[%clk 0:01:10]}  Qh4 {[%clk 0:01:03]} 33. Qf2 {[%clk 0:01:09]}  Qh5 {[%clk 0:00:39]} 34. e5 {[%clk 0:00:51]}  dxe5 {[%clk 0:00:33]} 35. Bxe5 {[%clk 0:00:46]}  f6 {[%clk 0:00:33]} 36. Bxf4 {[%clk 0:00:43]}  Bxf5 {[%clk 0:00:28]} 37. Bxf5+ {[%clk 0:00:41]}  Qxf5 {[%clk 0:00:26]} 38. Rxg8 {[%clk 0:00:42]}  Kxg8 {[%clk 0:00:24]} 39. Qg3+ {[%clk 0:00:38]}  Kh7 {[%clk 0:00:24]} 40. Kxh2 {[%clk 0:00:38]}  h5 {[%clk 0:00:19]} 41. Qh4 {[%clk 0:00:36]}  Kg6 {[%clk 0:00:20]} 42. Bg3 {[%clk 0:00:36]}  Qd3 {[%clk 0:00:19]} 43. Qd4 {[%clk 0:00:35]}  Qe2 {[%clk 0:00:18]} 44. Bxc7 {[%clk 0:00:31]}  h4 {[%clk 0:00:18]} 45. Qxh4 {[%clk 0:00:28]}  Qe6 {[%clk 0:00:18]} 46. Qg3+ {[%clk 0:00:27]}  Kf7 {[%clk 0:00:18]} 47. Bf4 {[%clk 0:00:25]}  Qxc6 {[%clk 0:00:18]} 48. Qd3 {[%clk 0:00:22]}  Kg7 {[%clk 0:00:18]} 49. Qd5 {[%clk 0:00:20]}  Qc8 {[%clk 0:00:18]} 50. c5 {[%clk 0:00:18]}  Qg4 {[%clk 0:00:19]} 51. Qf3 {[%clk 0:00:18]}  Qg6 {[%clk 0:00:16]} 52. Qg3 {[%clk 0:00:18]}  Qxg3+ {[%clk 0:00:14]} 53. Bxg3 {[%clk 0:00:18]}  Kf7 {[%clk 0:00:14]} 54. c6 {[%clk 0:00:19]}  Ke6 {[%clk 0:00:15]} 55. c7 {[%clk 0:00:20]}  Kd7 {[%clk 0:00:16]} 56. Kh3 {[%clk 0:00:21]}  Kc8 {[%clk 0:00:16]} 57. Kg4 {[%clk 0:00:21]}  Kd7 {[%clk 0:00:17]} 58. Kf5 {[%clk 0:00:22]}  Kc8 {[%clk 0:00:17]} 59. Kxf6 {[%clk 0:00:22]}  Kb7 {[%clk 0:00:18]} 60. Ke7 {[%clk 0:00:22]}  Kc8 {[%clk 0:00:18]} 61. Ke8 {[%clk 0:00:23]}  Kb7 {[%clk 0:00:19]} 62. Kd8 {[%clk 0:00:24]}  Ka6 {[%clk 0:00:20]} 63. c8=Q+ {[%clk 0:00:24]}  Ka5 {[%clk 0:00:21]} 64. Qc4 {[%clk 0:00:23]}  Kb6 {[%clk 0:00:20]} 65. Bf2+ {[%clk 0:00:24]}  Kb7 {[%clk 0:00:20]} 66. Qc7+ {[%clk 0:00:21]}  Ka6 {[%clk 0:00:20]} 67. Qb6# {[%clk 0:00:21]} 1-0


[Site "https://www.chess.com"]

[Event "Titled Tuesday Blitz January 03 Late 2023"]
[White "Vifleemskaia, Svetlana"]
[Black "Winterberg, Lukas"]
[WhiteFideId "4129490"]
[BlackFideId "24622702"]
[WhiteElo "1971"]
[BlackElo "2402"]
[Result "1-0"]
[Round "02"]
[TimeControl "180+2"]
[Date "2023.01.03"]
[WhiteClock "0:01:44"]
[BlackClock "0:00:33"]

1. d4 {[%clk 0:03:00]}  Nf6 {[%clk 0:01:21]} 2. c4 {[%clk 0:02:58]}  e6 {[%clk 0:01:15]} 3. Nc3 {[%clk 0:02:58]}  d5 {[%clk 0:01:15]} 4. cxd5 {[%clk 0:02:57]}  exd5 {[%clk 0:01:15]} 5. Bg5 {[%clk 0:02:57]}  c6 {[%clk 0:01:16]} 6. e3 {[%clk 0:02:56]}  Be7 {[%clk 0:01:17]} 7. Bd3 {[%clk 0:02:56]}  h6 {[%clk 0:01:17]} 8. Bh4 {[%clk 0:02:56]}  O-O {[%clk 0:01:17]} 9. Nge2 {[%clk 0:02:56]}  Re8 {[%clk 0:01:18]} 10. f3 {[%clk 0:02:55]}  Nbd7 {[%clk 0:01:19]} 11. O-O {[%clk 0:02:55]}  Nf8 {[%clk 0:01:19]} 12. Bf2 {[%clk 0:02:50]}  Ne6 {[%clk 0:00:54]} 13. Kh1 {[%clk 0:02:49]}  g6 {[%clk 0:00:54]} 14. e4 {[%clk 0:02:46]}  Ng7 {[%clk 0:00:54]} 15. e5 {[%clk 0:02:44]}  Nh7 {[%clk 0:00:54]} 16. Ng3 {[%clk 0:02:39]}  h5 {[%clk 0:00:53]} 17. f4 {[%clk 0:02:38]}  h4 {[%clk 0:00:52]} 18. Nge2 {[%clk 0:02:37]}  Bf5 {[%clk 0:00:51]} 19. Bxf5 {[%clk 0:02:27]}  Nxf5 {[%clk 0:00:52]} 20. g4 {[%clk 0:02:25]}  hxg3 {[%clk 0:00:51]} 21. hxg3 {[%clk 0:02:25]}  Kg7 {[%clk 0:00:50]} 22. Kg2 {[%clk 0:02:24]}  Nf8 {[%clk 0:00:49]} 23. Rh1 {[%clk 0:02:22]}  Ne6 {[%clk 0:00:49]} 24. Qd2 {[%clk 0:02:15]}  Rh8 {[%clk 0:00:49]} 25. Rxh8 {[%clk 0:02:14]}  Qxh8 {[%clk 0:00:48]} 26. Rh1 {[%clk 0:02:13]}  Qd8 {[%clk 0:00:48]} 27. g4 {[%clk 0:02:03]}  Nh6 {[%clk 0:00:49]} 28. Kf3 {[%clk 0:01:58]}  c5 {[%clk 0:00:42]} 29. Be3 {[%clk 0:01:57]}  cxd4 {[%clk 0:00:41]} 30. Nxd4 {[%clk 0:01:56]}  Nxd4+ {[%clk 0:00:38]} 31. Bxd4 {[%clk 0:01:56]}  Ng8 {[%clk 0:00:38]} 32. g5 {[%clk 0:01:49]}  Qd7 {[%clk 0:00:35]} 33. e6+ {[%clk 0:01:49]}  f6 {[%clk 0:00:34]} 34. exd7 {[%clk 0:01:48]}  Rd8 {[%clk 0:00:33]} 35. Nxd5 {[%clk 0:01:44]} 1-0


[Site "https://www.chess.com"]

[Event "Titled Tuesday Blitz January 03 Late 2023"]
[White "Cadena M, Gustavo Adolfo"]
[Black "Alexikov, Alexander"]
[WhiteFideId "4404815"]
[BlackFideId "14103958"]
[WhiteElo "2195"]
[BlackElo "2209"]
[Result "1-0"]
[Round "02"]
[TimeControl "180+2"]
[Date "2023.01.03"]
[WhiteClock "0:00:53"]
[BlackClock "0:00:01"]

1. c4 {[%clk 0:03:00]}  Nf6 {[%clk 0:02:58]} 2. Nc3 {[%clk 0:02:56]}  g6 {[%clk 0:02:58]} 3. d4 {[%clk 0:02:53]}  Bg7 {[%clk 0:02:58]} 4. e4 {[%clk 0:02:53]}  d6 {[%clk 0:02:58]} 5. f4 {[%clk 0:02:52]}  O-O {[%clk 0:02:57]} 6. Nf3 {[%clk 0:02:47]}  Na6 {[%clk 0:02:54]} 7. Bd3 {[%clk 0:02:45]}  c5 {[%clk 0:02:51]} 8. d5 {[%clk 0:02:45]}  e6 {[%clk 0:02:51]} 9. O-O {[%clk 0:02:44]}  exd5 {[%clk 0:02:47]} 10. cxd5 {[%clk 0:02:43]}  Nc7 {[%clk 0:02:45]} 11. Kh1 {[%clk 0:02:41]}  b5 {[%clk 0:02:37]} 12. f5 {[%clk 0:02:21]}  c4 {[%clk 0:02:30]} 13. Bb1 {[%clk 0:02:20]}  b4 {[%clk 0:01:49]} 14. Ne2 {[%clk 0:02:15]}  gxf5 {[%clk 0:01:48]} 15. Ng3 {[%clk 0:02:11]}  fxe4 {[%clk 0:01:40]} 16. Nxe4 {[%clk 0:02:11]}  Nfxd5 {[%clk 0:01:25]} 17. Bg5 {[%clk 0:02:10]}  f6 {[%clk 0:01:23]} 18. Bc1 {[%clk 0:02:00]}  Be6 {[%clk 0:01:12]} 19. a4 {[%clk 0:01:57]}  a5 {[%clk 0:01:07]} 20. Nd4 {[%clk 0:01:54]}  Bf7 {[%clk 0:01:00]} 21. Nf5 {[%clk 0:01:53]}  Bg6 {[%clk 0:00:59]} 22. Nexd6 {[%clk 0:01:52]}  Ra6 {[%clk 0:00:53]} 23. Nb5 {[%clk 0:01:41]}  Ne6 {[%clk 0:00:49]} 24. Qxd5 {[%clk 0:01:34]}  Qxd5 {[%clk 0:00:38]} 25. Ne7+ {[%clk 0:01:34]}  Kf7 {[%clk 0:00:37]} 26. Nxd5 {[%clk 0:01:34]}  Nc5 {[%clk 0:00:23]} 27. Bxg6+ {[%clk 0:01:25]}  hxg6 {[%clk 0:00:22]} 28. Bg5 {[%clk 0:01:21]}  Kg8 {[%clk 0:00:17]} 29. Be3 {[%clk 0:01:19]}  Nd3 {[%clk 0:00:14]} 30. Bd4 {[%clk 0:01:18]}  f5 {[%clk 0:00:13]} 31. Bxg7 {[%clk 0:01:15]}  Kxg7 {[%clk 0:00:12]} 32. Nbc7 {[%clk 0:01:15]}  Rd6 {[%clk 0:00:10]} 33. Nf4 {[%clk 0:01:13]}  Kf6 {[%clk 0:00:07]} 34. Ncd5+ {[%clk 0:00:59]}  Kf7 {[%clk 0:00:05]} 35. Nxd3 {[%clk 0:00:57]}  Rxd5 {[%clk 0:00:03]} 36. Nf4 {[%clk 0:00:56]}  Rd2 {[%clk 0:00:02]} 37. Rac1 {[%clk 0:00:55]}  Rc8 {[%clk 0:00:02]} 38. b3 {[%clk 0:00:55]}  c3 {[%clk 0:00:01]} 39. Rfd1 {[%clk 0:00:53]} 1-0


[Site "https://www.chess.com"]

[Event "Titled Tuesday Blitz January 03 Late 2023"]
[White "Derige Kane, Yan"]
[Black "Wieczorek, Zbigniew"]
[WhiteFideId "20665431"]
[BlackFideId "1102001"]
[WhiteElo "2204"]
[BlackElo "2150"]
[Result "1-0"]
[Round "02"]
[TimeControl "180+2"]
[Date "2023.01.03"]
[WhiteClock "0:00:04"]
[BlackClock "0:00:01"]

1. Nf3 {[%clk 0:03:00]}  d5 {[%clk 0:02:58]} 2. g3 {[%clk 0:02:50]}  Nf6 {[%clk 0:02:57]} 3. Bg2 {[%clk 0:02:49]}  Bg4 {[%clk 0:02:55]} 4. O-O {[%clk 0:02:49]}  c6 {[%clk 0:02:53]} 5. d3 {[%clk 0:02:49]}  Bxf3 {[%clk 0:02:51]} 6. Bxf3 {[%clk 0:02:48]}  Nbd7 {[%clk 0:02:51]} 7. Nd2 {[%clk 0:02:47]}  e5 {[%clk 0:02:50]} 8. c4 {[%clk 0:02:46]}  h5 {[%clk 0:02:32]} 9. h3 {[%clk 0:02:39]}  Bd6 {[%clk 0:02:15]} 10. cxd5 {[%clk 0:02:32]}  cxd5 {[%clk 0:02:15]} 11. e4 {[%clk 0:02:32]}  dxe4 {[%clk 0:02:10]} 12. dxe4 {[%clk 0:02:30]}  Rc8 {[%clk 0:01:53]} 13. Qe2 {[%clk 0:02:28]}  Nc5 {[%clk 0:01:44]} 14. Nc4 {[%clk 0:02:27]}  Ne6 {[%clk 0:01:43]} 15. Be3 {[%clk 0:02:24]}  Bb8 {[%clk 0:01:37]} 16. Rfd1 {[%clk 0:02:22]}  Qe7 {[%clk 0:01:35]} 17. Rac1 {[%clk 0:01:53]}  O-O {[%clk 0:01:34]} 18. a3 {[%clk 0:01:52]}  Rfd8 {[%clk 0:01:00]} 19. Rxd8+ {[%clk 0:01:39]}  Rxd8 {[%clk 0:00:58]} 20. Bg2 {[%clk 0:00:49]}  h4 {[%clk 0:00:50]} 21. b4 {[%clk 0:00:39]}  hxg3 {[%clk 0:00:49]} 22. fxg3 {[%clk 0:00:38]}  Nd4 {[%clk 0:00:46]} 23. Qb2 {[%clk 0:00:37]}  Nh5 {[%clk 0:00:36]} 24. Kh2 {[%clk 0:00:36]}  Qf6 {[%clk 0:00:31]} 25. Rf1 {[%clk 0:00:20]}  Qg6 {[%clk 0:00:30]} 26. Bf2 {[%clk 0:00:08]}  Nf6 {[%clk 0:00:16]} 27. Qb1 {[%clk 0:00:06]}  Nh7 {[%clk 0:00:15]} 28. Rd1 {[%clk 0:00:04]}  Ng5 {[%clk 0:00:14]} 29. h4 {[%clk 0:00:04]}  Ngf3+ {[%clk 0:00:08]} 30. Bxf3 {[%clk 0:00:05]}  Nxf3+ {[%clk 0:00:07]} 31. Kh1 {[%clk 0:00:05]}  Nd4 {[%clk 0:00:02]} 32. Qd3 {[%clk 0:00:04]}  Qg4 {[%clk 0:00:02]} 33. Kg2 {[%clk 0:00:04]}  b5 {[%clk 0:00:01]} 34. Ne3 {[%clk 0:00:04]} 1-0


[Site "https://www.chess.com"]